Cogmind - Beta 12 @@@ ROGUE MODE // 2023.05.02 @ 23:56:58 Player: Dytto Result: Destroyed by as-60325 with Assembled Blade Performance ------------- Evolutions (0) 0 Regions Visited (2) 400 Robots Destroyed (13) 65 Value Destroyed (240) 240 Prototype IDs (0) 0 Alien Tech Used (0) 0 Bonus (0) 0 TOTAL SCORE: 705 Bonus ------- None Cogmind --------- Core Integrity 0/250 Matter 184/300 Energy 500/500 System Corruption 3% Temperature Cool (0) Movement Core (250) Ox4 Location -10/Mines Parts ------- > --- POWER (1) -------- Ion Engine > --- PROPULSION (2) --- (None) > --- UTILITY (2) ------ High-capacity Battery Power Shielding > --- WEAPON (2) ------- Assault Rifle Mining Claw > --- INVENTORY (5) ---- Ion Engine Hardened Light Armor Plating Grenade Launcher Peak State ------------ > --- POWER ------------ Ion Engine > --- PROPULSION ------- Aluminum Leg Aluminum Leg > --- UTILITY ---------- Large Battery Shield Generator > --- WEAPON ----------- EM Pulse Gun Grenade Launcher > --- INVENTORY -------- Ion Engine Ion Engine Assault Rifle [Rating: 8] Favorites ----------- Power Ion Engine Engine Ion Engine Propulsion Aluminum Leg Leg Aluminum Leg Utility Shield Generator Device Shield Generator Storage High-capacity Battery Protection Power Shielding Weapon Grenade Launcher Energy Gun EM Pulse Gun Ballistic Gun Assault Rifle Launcher Grenade Launcher Slashing Weapon Mining Claw Build | -11 -10 -10 ------- Run | Jun Mat Min Slots Evolved . | . . . Power . | . . . Propulsion . | . . . Utility . | . . . Weapon . | . . . Parts Attached 12 | 4 4 4 Power 1 | 1 . . Engine 1 | 1 . . Core . | . . . Reactor . | . . . Propulsion 2 | 2 . . Treads . | . . . Leg 2 | 2 . . Wheel . | . . . Hover . | . . . Flight . | . . . Utility 5 | . 3 2 Device 1 | . 1 . Storage 2 | . 2 . Processor . | . . . Hackware . | . . . Protection 2 | . . 2 Artifact . | . . . Weapon 4 | 1 1 2 Energy Gun 1 | 1 . . Energy Cannon . | . . . Ballistic Gun 1 | . . 1 Ballistic Cannon . | . . . Launcher 1 | . 1 . Special Weapon . | . . . Impact Weapon . | . . . Slashing Weapon 1 | . . 1 Piercing Weapon . | . . . Special Melee Weapon . | . . . Unidentified Prototypes . | . . . Parts Lost 4 | . . 4 Power . | . . . Propulsion 2 | . . 2 Utility 1 | . . 1 Weapon 1 | . . 1 Highest Loss Streak 2 | . . 2 To Critical Strikes . | . . . Average Slot Usage (%) 89 | . 89 93 Engine 14 | . 14 14 Leg 27 | . 28 27 Device 7 | . 7 7 Storage 10 | . 10 14 Protection 1 | . . 6 Energy Gun 12 | . 14 3 Ballistic Gun 1 | . . 6 Launcher 13 | . 13 12 Naked Turns . | . . . Heaviest Build 16 | 7 16 16 Greatest Support 20 | 20 20 20 Greatest Overweight (x) 1 | . . 1 Average Overweight (x) . | . . . Largest Inventory Capacity 5 | 5 5 5 Average Capacity 5 | 5 5 5 Most Carried 5 | 2 5 5 Average Carried 3 | 1 3 4 Final Capacity 5 | 5 5 5 Final Carried 5 | 2 5 3 Class Distribution -------------------- 100% | Mutant Dominant Class ---------------- Mutant | -10/Materials Mutant | -10/Mines Resources | -11 -10 -10 ----------- Run | Jun Mat Min Matter Collected 304 | 210 11 83 Remotely . | . . . Salvage Created 221 | . 40 181 Parts 23 | . 11 12 Haulers Intercepted . | . . . Recyclers Shooed . | . . . Parts Field Recycled . | . . . Retrieved Matter . | . . . Parts Self-Destructed . | . . . Prevented . | . . . Kills | -11 -10 -10 ------- Run | Jun Mat Min Combat Hostiles Destroyed 11 | . 3 8 Melee 1 | . . 1 Guns 2 | . . 2 AOE 8 | . 3 5 Classes Destroyed 5 | . 3 2 Worker 2 | . 2 . Operator 1 | . 1 . Swarmer 6 | . 3 3 Grunt 4 | . . 4 Assembled 1 | . . 1 Best Kill Streak 5 | . 5 5 Combat Bots Only 5 | . 3 5 Max Kills in Single Turn 4 | . 4 2 Gunslinging . | . . . Exploded 2 | . 2 2 Melee 1 | . . 1 Uniques/NPCs Destroyed . | . . . Combat | -11 -10 -10 -------- Run | Jun Mat Min Damage Taken 672 | . 44 628 Core 251 | . 23 228 Absorbed by Shields 144 | . 19 125 Redirected to Shielding 6 | . . 6 Core Remaining (%) 100 | 100 . . Volleys Fired 28 | . 3 25 Largest 2 | . 2 1 Hottest 70 | . 70 40 Shots Fired 29 | . 4 25 Gun 17 | . 1 16 Cannon . | . . . Launcher 12 | . 3 9 Special . | . . . Kinetic . | . . . Thermal . | . . . Explosive 12 | . 3 9 Electromagnetic 17 | . 1 16 Robot Hit Streak 5 | . 3 5 Robot Miss Streak 3 | . 1 3 Penetration Max . | . . . Secondary Targets . | . . . Shots Hit Robots 20 | . 3 17 Core Hits 20 | . 7 13 Critical Kills . | . . . Critical Parts Destroyed . | . . . Critical Strikes . | . . . Melee Attacks 6 | . . 6 Impact . | . . . Slashing 6 | . . 6 Piercing . | . . . Sneak Attacks . | . . . Combat Hostiles . | . . . Follow-up Attacks . | . . . Damage Inflicted 886 | . 273 613 Guns 147 | . . 147 Cannons . | . . . Explosions 682 | . 273 409 Melee 57 | . . 57 Ramming . | . . . Kinetic . | . . . Thermal . | . . . Explosive 682 | . 273 409 Electromagnetic 147 | . . 147 Impact . | . . . Slashing 57 | . . 57 Piercing . | . . . Highest Corruption 3 | . . 3 Average Corruption 3 | . . 3 Corruption Purged . | . . . Corruption Blocked . | . . . Overload Shots . | . . . Overflow Damage 33 | . 22 11 Projectiles . | . . . Explosions 33 | . 22 11 Melee . | . . . Knockbacks . | . . . Impact . | . . . Kinetic . | . . . Secondary . | . . . Self-Inflicted Damage 69 | . 9 60 Shots 4 | . 1 3 Rammed . | . . . Targets Rammed . | . . . Kicked . | . . . Crushed . | . . . Highest Temperature 22 | . 9 22 Average Temperature 11 | . 6 11 Received Heat Transfer 172 | . 12 160 Siege Activations . | . . . Robots Corrupted . | . . . Combat Hostiles . | . . . Parts Fried . | . . . Impact Corruptions . | . . . Robots Melted . | . . . Combat Hostiles . | . . . Parts Melted . | . . . Heat Transferred . | . . . Parts Sabotaged . | . . . Parts Stolen . | . . . Parts Stripped . | . . . Power Chain Reactions . | . . . Missiles Intercepted . | . . . Alert | -11 -10 -10 ------- Run | Jun Mat Min Peak Influence 269 | . 164 269 Initial 63 | . . 63 Average 74 | . 55 203 Maximum Alert Level 1 | . . 1 Low Security (%) 90 | 100 100 41 Level 1 9 | . . 58 Level 2 . | . . . Level 3 . | . . . Level 4 . | . . . Level 5 . | . . . High Security . | . . . Max Security . | . . . Squads Dispatched . | . . . Investigation . | . . . Extermination . | . . . Reinforcement . | . . . Assault . | . . . Garrison . | . . . Intercept . | . . . Searches Triggered . | . . . Construction Impeded . | . . . Haulers Reinforced . | . . . Active Scanning Responses . | . . . Cargo Convoy Interrupts . | . . . Stealth | -11 -10 -10 --------- Run | Jun Mat Min Distress Signals 1 | . . 1 Communications Jammed . | . . . Distress Signals . | . . . Times Spotted 23 | . 12 11 Peak Tracking Total 3 | . 3 3 Tactical Retreats . | . . . Traps | -11 -10 -10 ------- Run | Jun Mat Min Traps Triggered . | . . . Indirectly . | . . . Trap Hack Attempts . | . . . Triggered . | . . . Disarmed . | . . . Reprogrammed . | . . . Reused . | . . . Traps Extracted . | . . . Installed . | . . . Triggered . | . . . Machines | -11 -10 -10 ---------- Run | Jun Mat Min Machines Disabled . | . . . Max in Single Turn . | . . . Machines Repaired . | . . . Machines Sabotaged . | . . . Overloaded Fab Kills . | . . . Hacking | -11 -10 -10 --------- Run | Jun Mat Min Machines Accessed 7 | . 7 . Terminals 7 | . 7 . Fabricators . | . . . Repair Stations . | . . . Recycling Units . | . . . Scanalyzers . | . . . Garrison Access . | . . . Total Hacks 11 | . 11 . Successful 4 | . 4 . Failed 7 | . 7 . Catastrophic . | . . . Database Lockouts . | . . . Manual 10 | . 10 . Terminals 11 | . 11 . Fabricators . | . . . Repair Stations . | . . . Recycling Units . | . . . Scanalyzers . | . . . Garrison Access . | . . . Terminal Hacks 4 | . 4 . Emergency Access Points 2 | . 2 . Locate Traps 1 | . 1 . Patrol Status 1 | . 1 . Fabricator Hacks . | . . . Repair Station Hacks . | . . . Recycling Unit Hacks . | . . . Scanalyzer . | . . . Garrison Access Hacks . | . . . Unauthorized Hacks . | . . . Terminals . | . . . Fabricators . | . . . Repair Stations . | . . . Recycling Units . | . . . Scanalyzers . | . . . Garrison Access . | . . . Data Cores Recovered 1 | . 1 . Used 1 | . 1 . Hacking Detections 5 | . 5 . Full Trace Events . | . . . Feedback Events . | . . . Feedback Blocked . | . . . Robot Schematics Acquired . | . . . Robots Built . | . . . Authchips . | . . . Time . | . . . Total Robot Build Rating . | . . . Part Schematics Acquired . | . . . Parts Built . | . . . Authchips . | . . . Time . | . . . Total Part Build Rating . | . . . Parts Repaired . | . . . Time . | . . . Parts Recycled . | . . . Recycled Matter . | . . . Retrieved Matter . | . . . Retrieved Components . | . . . Parts Scanalyzed . | . . . Part Schematics Acquired . | . . . Parts Damaged . | . . . Bothacking | -11 -10 -10 ------------ Run | Jun Mat Min Used RIF Installer . | . . . Robots Hacked . | . . . Non-combat . | . . . Combat . | . . . Robot Hacks Applied . | . . . Relay Couplers Released . | . . . Fabnet Peak Effective % . | . . . Robots Rewired . | . . . Allies Hacked . | . . . Hacks Repelled . | . . . Allies | -11 -10 -10 -------- Run | Jun Mat Min Total Allies . | . . . Largest Group . | . . . Highest-Rated Group . | . . . Highest-Rated Ally . | . . . Total Orders . | . . . Ally Attacks . | . . . Total Damage . | . . . Kills . | . . . Allies Corrupted . | . . . Allies Melted . | . . . Intel | -11 -10 -10 ------- Run | Jun Mat Min Robot Analysis Total . | . . . Derelict Logs Recovered . | . . . Drone Launches . | . . . Drone Recoveries . | . . . Exploration | -11 -10 -10 ------------- Run | Jun Mat Min Turns Passed 1004 | 94 747 163 Spaces Moved 721 | 78 570 73 Core 10 | 10 . . Treads . | . . . Legs 711 | 68 570 73 Wheels . | . . . Hover . | . . . Flight . | . . . Fastest Speed 50 | 50 120 120 Average Speed 119 | 111 120 120 Slowest Speed 190 | 120 120 190 Overloaded Moves . | . . . Propulsion Burnouts . | . . . Robots Hopped . | . . . Cave-ins Triggered . | . . . Exploration Rate (%) 28 | 5 67 12 Regions Visited 2 Branch Regions 1 Pre-discovered Areas . | . . . Known Exits Taken . | . . . Unknown Exits Taken 2 | 1 1 . Scrap Searched . | . . . Spaces Dug . | . . . Terrain Destroyed 77 | . 22 55 Melee . | . . . Projectile . | . . . AOE 77 | . 22 55 Terrain Rammed . | . . . Walls Destroyed . | . . . Machines Disabled . | . . . Actions | -11 -10 -10 --------- Run | Jun Mat Min Total 823 | 83 629 111 Wait 47 | . 44 3 Move 719 | 77 569 73 Hop . | . . . Pick Up 8 | 2 6 . Fast Attach 7 | 4 3 . Attach 3 | . 1 2 Detach . | . . . Swap 2 | . . 2 Drop 3 | . 3 . Fire 28 | . 3 25 Melee 6 | . . 6 Ram . | . . . Kick . | . . . Crush . | . . . Escape Stasis . | . . . Rewire . | . . . Trap . | . . . Miscellaneous . | . . . Route ------- -11/Junkyard -10/Materials (discovered 3 exits: [*Mat x2] / [*Min]) -10/Mines History --------- Turn | Location | Event 6 | -11/Junkyard | Discovered new exit (range 15) 95 | -11/Junkyard | Entered Materials 178 | -10/Materials | Discovered new exit (range 5) 324 | -10/Materials | Build established: Mutant 565 | -10/Materials | Discovered new exit (range 11) 686 | -10/Materials | Discovered new exit (range 15) 842 | -10/Materials | Entered Mines 924 | -10/Mines | Core integrity fell below 50% 946 | -10/Mines | Assembled infested the area 998 | -10/Mines | Core integrity fell below 20% 1005 | -10/Mines | Destroyed by as-60325 with Assembled Blade Last Messages --------------- 00907_ The unstable cave ceiling collapses. 00910_ S-10 Pest destroyed. 00921_ Destroyed Lgt. Ion Engine. 00921_ Destroyed Flight Unit. 00922_ Shield Generator destroyed. 00923_ S-10 Pest destroyed. 00930_ The unstable cave ceiling collapses. 00930_ Acquired 12 matter. 00931_ Acquired 11 matter. 00946_ ALERT: Infestation in the mines, dispatching Demolisher response squad. 00952_ The unstable cave ceiling collapses. 00972_ R-06 Scavenger collects Sml. Laser. 00981_ R-06 Scavenger collects Flight Unit. 00987_ as-16408 destroyed. 00989_ The unstable cave ceiling collapses. 00999_ Aluminum Leg destroyed. 00999_ System corrupted by crushing effect (+3). 00999_ Knocked back. 01003_ Aluminum Leg destroyed. Map ----- +----------------------------------------------------+ | ?????????????????????????????????????????????????? | | ?????????????????????????????????????????????????? | | ?????????????????????????????????????????????????? | | ?????????????????????????????????????????????????? | | ?????????????????????#####???????????????????????? | | ?????????????????????# ##??????????????????????? | | ?????????????????????# ##?????????????????????? | | ?????????????????????# ##????????????????????? | | ?????????????????????## #????????????????????? | | ??????????????????????## #????????????????????? | | ???????????????????????# ##????????????????????? | | ??????????????????????## #?????????????????????? | | ??????????????????????# #?????????????????????? | | ??????????????????????# #?????????????????????? | | ??????????????????????# ##?????????????????????? | | ?????????# ?????????### #?????????##???????????? | | ?????????# ????????## #???????? ????????????? | | ????????## ???????# #??????? #????????????? | | ???????## ???????# * ##????? #?????????????? | | ???????# ?????## [ #???? #?????????????? | | ???????# ????# ##??? ##????????????? | | ???????# ????### #???# #### #???????? | | ???????# ???# # #??# ????????? | | ???????# ##### ### #???????????? | | ????????# # tr a % #???????????? | | ???????????# ## @a #????????????? | | ??????????## # a## ##????????????? | | ??????????# % ####?? #?????????????? | | ??????????# % [= ##?????? #????????????? | | ??????????# # #????????# ??????????? | | ??????????# ### ! ##??????????# ? #????????? | | ??????????######### ###???????????????? #????????? | | ??????????????????###????????????????????????????? | | ?????????????????????????????????????????????????? | | ?????????????????????????????????????????????????? | | ?????????????????????????????????????????????????? | | | | | | | | | | | | | | | | | | | | | | | | | | | | | +----------------------------------------------------+ Best States ------------- Heat Dissipation 25 Energy Generation 10 Energy Capacity 500 Matter Stores 271 Matter Capacity 300 Sight Range 16 Terrain Scan Density 10 Armor Coverage 150 Power Shielding 33 Evasion (%) 55 Item Schematics ----------------- None Robot Schematics ------------------ None Fabricated ------------ Nothing Alien Tech Used ----------------- None Achievements -------------- None Challenges ------------ None Game ------ Seed DeuteriumLargeFacilitator Manual? 0 Play Time 00:09:16 Cumulative 24.7 hours Start 2023.05.02 @ 23:49:34 End 2023.05.02 @ 23:56:58 Sessions 1 Manual Loads 0 Difficulty Rogue Special Mode None Game No. 91 Rogue 55 Adventurer 36 Explorer 0 Win Type - Total 0 Types 0/0/0/0/0/0/0/0/0 Lore% 20 Gallery% 25 Achievement% 18 Wizard Run 0 Options --------- ASCII 0 Keyboard 1 Movement Numpad Keybinds 0 Fullscreen 2 Font 18/X11Bold Map View 76x50 Tactical HUD 1 Map Filters NONE Filters NONE Steam 1 RUN: f63ba62e-ca43-48a1-830a-94f7af42d140